[Event "MCR rapid mládeže 2023 U16"]
[Site "Harachov, Czech Republic"]
[Date "2023.09.09"]
[Round "2.37"]
[White "Najdkova, Laura"]
[Black "Topencikova, Ellen"]
[Result "1-0"]
[TimeControl "20min+5s/move"]
[WhiteElo "1331"]
[BlackElo "1038"]

1. e4 {[%clk 00:20:08]} c6 {[%clk 00:20:08]} {[%emt 00:00:02]} 2. d4 {[%clk
00:20:08]} {[%emt 00:00:07]} d5 {[%clk 00:20:11]} {[%emt 00:00:02]} 3. exd5
{[%clk 00:20:10]} {[%emt 00:00:02]} cxd5 {[%clk 00:20:14]} {[%emt 00:00:02]} 4.
Nc3 {[%clk 00:20:10]} {[%emt 00:00:05]} Bf5 {[%clk 00:19:55]} {[%emt 00:00:23]}
5. Bf4 {[%clk 00:20:08]} {[%emt 00:00:07]} e6 {[%clk 00:19:53]} {[%emt
00:00:09]} 6. Nf3 {[%clk 00:19:54]} {[%emt 00:00:18]} Bd6 {[%clk 00:19:28]}
{[%emt 00:00:31]} 7. Bg3 {[%clk 00:19:49]} {[%emt 00:00:09]} Nf6 {[%clk
00:19:20]} {[%emt 00:00:12]} 8. Bb5+ {[%clk 00:19:37]} {[%emt 00:00:17]} Nc6
{[%clk 00:18:34]} {[%emt 00:00:53]} 9. Bxd6 {[%clk 00:19:14]} {[%emt 00:00:27]}
Qxd6 {[%clk 00:18:19]} {[%emt 00:00:20]} 10. Ne5 {[%emt 00:00:08]} Rc8 {[%emt
00:00:35]} 11. O-O {[%clk 00:18:09]} {[%emt 00:00:27]} O-O {[%clk 00:18:19]}
{[%emt 00:00:05]} 12. Bxc6 {[%clk 00:17:49]} {[%emt 00:00:25]} bxc6 {[%clk
00:17:52]} {[%emt 00:00:33]} 13. Qf3 {[%clk 00:17:33]} {[%emt 00:00:18]} Nd7
{[%clk 00:17:13]} {[%emt 00:00:46]} 14. Rfe1 {[%clk 00:16:01]} {[%emt
00:01:34]} f6 {[%clk 00:16:47]} {[%emt 00:00:34]} 15. Nxd7 {[%clk 00:15:18]}
{[%emt 00:00:49]} Qxd7 {[%clk 00:16:47]} {[%emt 00:00:04]} 16. Re2 {[%clk
00:14:35]} {[%emt 00:00:48]} e5 {[%clk 00:16:25]} {[%emt 00:00:27]} 17. dxe5
{[%clk 00:13:22]} {[%emt 00:01:19]} Bg4 {[%clk 00:16:24]} {[%emt 00:00:05]} 18.
e6 {[%clk 00:12:57]} {[%emt 00:00:30]} Bxe6 {[%clk 00:16:01]} {[%emt 00:00:28]}
19. Qg3 {[%clk 00:12:29]} {[%emt 00:00:32]} Rfe8 {[%clk 00:15:17]} {[%emt
00:00:50]} 20. Rae1 {[%clk 00:11:15]} {[%emt 00:01:19]} Qf7 {[%clk 00:14:20]}
{[%emt 00:01:02]} 21. Qf4 {[%clk 00:10:26]} {[%emt 00:00:53]} Rc7 {[%clk
00:13:46]} {[%emt 00:00:41]} 22. Qd6 {[%clk 00:09:42]} {[%emt 00:00:46]} Rce7
{[%clk 00:13:01]} {[%emt 00:00:53]} 23. Qxc6 {[%clk 00:08:49]} {[%emt
00:00:58]} Bd7 {[%clk 00:09:15]} {[%emt 00:03:50]} 24. Qxd7 {[%clk 00:05:14]}
{[%emt 00:03:41]} Rxd7 {[%clk 00:07:40]} {[%emt 00:01:40]} 25. Rxe8+ {[%clk
00:05:16]} {[%emt 00:00:02]} Qxe8 {[%clk 00:07:43]} {[%emt 00:00:02]} 26. Rxe8+
{[%clk 00:05:20]} {[%emt 00:00:01]} Kf7 {[%clk 00:07:47]} 27. Rb8 {[%clk
00:04:47]} {[%emt 00:00:38]} Re7 {[%clk 00:07:47]} {[%emt 00:00:05]} 28. h3
{[%clk 00:04:46]} {[%emt 00:00:06]} Rd7 {[%clk 00:07:25]} {[%emt 00:00:26]} 29.
Nb5 {[%clk 00:04:27]} {[%emt 00:00:24]} d4 {[%clk 00:07:10]} {[%emt 00:00:21]}
30. Kf1 {[%clk 00:03:04]} {[%emt 00:01:28]} Rd5 {[%clk 00:07:01]} {[%emt
00:00:10]} 31. Rb7+ {[%clk 00:03:02]} {[%emt 00:00:11]} Kg6 {[%clk 00:06:42]}
{[%emt 00:00:24]} 32. Rxa7 {[%clk 00:03:00]} {[%emt 00:00:07]} Rxb5 {[%clk
00:06:44]} {[%emt 00:00:04]} 33. b3 {[%clk 00:01:40]} {[%emt 00:01:24]} Rc5
{[%clk 00:06:35]} {[%emt 00:00:14]} 34. Rd7 {[%clk 00:01:23]} {[%emt 00:00:23]}
Rxc2 {[%clk 00:06:37]} {[%emt 00:00:03]} 35. Rxd4 {[%clk 00:01:25]} {[%emt
00:00:03]} Rxa2 {[%clk 00:06:40]} {[%emt 00:00:02]} 36. b4 {[%clk 00:01:20]}
{[%emt 00:00:09]} Rb2 {[%clk 00:06:39]} {[%emt 00:00:06]} 37. g3 {[%clk
00:01:14]} {[%emt 00:00:10]} Kf5 {[%clk 00:06:42]} {[%emt 00:00:03]} 38. Rd7
{[%clk 00:00:56]} {[%emt 00:00:23]} Kg6 {[%clk 00:06:37]} {[%emt 00:00:10]} 39.
Rd4 {[%clk 00:00:52]} {[%emt 00:00:09]} Kf5 {[%clk 00:06:39]} {[%emt 00:00:04]}
40. Kg2 {[%clk 00:00:50]} {[%emt 00:00:06]} Ke5 {[%clk 00:06:40]} {[%emt
00:00:03]} 41. Rd7 {[%clk 00:00:55]} {[%emt 00:00:01]} Rxb4 {[%clk 00:06:38]}
{[%emt 00:00:08]} 42. Rxg7 {[%clk 00:00:58]} {[%emt 00:00:02]} h5 {[%clk
00:06:38]} {[%emt 00:00:04]} 43. Rh7 {[%clk 00:01:01]} {[%emt 00:00:01]} Rb3
{[%clk 00:06:30]} {[%emt 00:00:13]} 44. Rxh5+ {[%clk 00:01:04]} {[%emt
00:00:03]} Ke6 {[%clk 00:06:32]} {[%emt 00:00:03]} 45. h4 {[%clk 00:01:06]}
{[%emt 00:00:04]} Ra3 {[%clk 00:06:32]} {[%emt 00:00:04]} 46. Rh6 {[%clk
00:01:02]} {[%emt 00:00:09]} Ke7 {[%clk 00:06:31]} {[%emt 00:00:06]} 47. Rh5
{[%clk 00:01:04]} {[%emt 00:00:03]} Rb3 {[%clk 00:06:26]} {[%emt 00:00:10]} 48.
Kh3 {[%clk 00:01:08]} {[%emt 00:00:02]} Rb4 {[%clk 00:06:25]} {[%emt 00:00:06]}
49. f4 {[%clk 00:01:10]} {[%emt 00:00:02]} Rb3 {[%clk 00:06:20]} {[%emt
00:00:10]} 50. Kg4 {[%clk 00:01:15]} {[%emt 00:00:01]} Rb8 {[%clk 00:06:14]}
{[%emt 00:00:10]} 51. Kf5 {[%clk 00:01:14]} {[%emt 00:00:07]} Rb5+ {[%clk
00:06:12]} {[%emt 00:00:06]} 52. Kg4 {[%clk 00:01:18]} {[%emt 00:00:01]} Rb8
{[%clk 00:06:16]} {[%emt 00:00:02]} 53. f5 {[%clk 00:01:17]} {[%emt 00:00:06]}
Rb4+ {[%clk 00:06:07]} {[%emt 00:00:13]} 54. Kf3 {[%clk 00:01:21]} {[%emt
00:00:02]} Rb3+ {[%clk 00:06:11]} {[%emt 00:00:01]} 55. Kg2 {[%clk 00:01:24]}
{[%emt 00:00:02]} Rb2+ {[%clk 00:06:15]} {[%emt 00:00:01]} 56. Kh3 {[%clk
00:01:28]} Rb4 {[%clk 00:06:13]} {[%emt 00:00:07]} 57. Rh7+ {[%clk 00:01:30]}
{[%emt 00:00:03]} Kd6 {[%clk 00:06:16]} {[%emt 00:00:02]} 58. Rh6 {[%clk
00:01:32]} {[%emt 00:00:03]} Ke5 {[%clk 00:06:19]} {[%emt 00:00:02]} 59. Rh5
{[%clk 00:01:33]} {[%emt 00:00:04]} Kd6 {[%clk 00:06:09]} {[%emt 00:00:15]} 60.
Rh6 {[%clk 00:01:25]} {[%emt 00:00:13]} Ke5 {[%clk 00:06:12]} {[%emt 00:00:02]}
61. g4 {[%clk 00:01:16]} {[%emt 00:00:14]} Rb3+ {[%clk 00:06:16]} {[%emt
00:00:01]} 62. Kg2 {[%clk 00:01:20]} {[%emt 00:00:01]} Rb2+ {[%clk 00:06:17]}
{[%emt 00:00:05]} 63. Kf3 {[%clk 00:01:20]} {[%emt 00:00:04]} Rb3+ {[%clk
00:06:21]} {[%emt 00:00:02]} 64. Kg2 {[%clk 00:01:09]} {[%emt 00:00:16]} Rb2+
{[%clk 00:06:24]} {[%emt 00:00:01]} 65. Kf3 {[%clk 00:01:01]} {[%emt 00:00:14]}
Rb3+ {[%clk 00:06:28]} 66. Ke2 {[%clk 00:00:59]} {[%emt 00:00:06]} Ke4 {[%clk
00:06:14]} {[%emt 00:00:19]} 67. Rxf6 {[%clk 00:00:59]} {[%emt 00:00:05]} Rb2+
{[%clk 00:06:17]} {[%emt 00:00:02]} 68. Kd1 {[%clk 00:00:58]} {[%emt 00:00:06]}
Kd3 {[%clk 00:06:19]} {[%emt 00:00:03]} 69. Rd6+ {[%clk 00:01:02]} {[%emt
00:00:01]} Kc3 {[%clk 00:06:18]} {[%emt 00:00:07]} 70. g5 {[%clk 00:00:51]}
{[%emt 00:00:15]} Rb1+ {[%clk 00:06:22]} {[%emt 00:00:01]} 71. Ke2 {[%clk
00:00:55]} {[%emt 00:00:02]} Rb5 {[%clk 00:06:16]} {[%emt 00:00:10]} 72. f6
{[%clk 00:00:58]} {[%emt 00:00:02]} Re5+ {[%clk 00:06:20]} {[%emt 00:00:01]} 73.
Kf3 {[%clk 00:00:58]} {[%emt 00:00:05]} Rf5 {[%clk 00:06:14]} {[%emt 00:00:11]}
74. Kg4 {[%clk 00:01:02]} Re5 {[%clk 00:06:16]} {[%emt 00:00:05]} 75. Kh5
{[%clk 00:01:06]} {[%emt 00:00:01]} Re8 {[%clk 00:06:16]} {[%emt 00:00:04]} 76.
g6 {[%clk 00:01:08]} {[%emt 00:00:03]} Rh8+ {[%clk 00:06:15]} {[%emt 00:00:06]}
77. Kg5 {[%clk 00:01:12]} {[%emt 00:00:02]} 1-0

[Event "MCR rapid mládeže 2023 U16"]
[Site "Harachov, Czech Republic"]
[Date "2023.09.09"]
[Round "2.42"]
[White "Martikanova, Amalie"]
[Black "Vanickova, Natalie"]
[Result "1-0"]
[TimeControl "20min+5s/move"]
[WhiteElo "1107"]
[BlackElo "1162"]

1. e4 {[%clk 00:20:07]} {[%emt 00:00:02]} d5 {[%clk 00:19:58]} {[%emt
00:00:12]} 2. exd5 {[%clk 00:20:09]} {[%emt 00:00:04]} Nf6 {[%clk 00:19:58]}
{[%emt 00:00:04]} 3. Nc3 {[%clk 00:20:08]} {[%emt 00:00:06]} Nxd5 {[%clk
00:19:54]} {[%emt 00:00:10]} 4. Bc4 {[%clk 00:20:03]} {[%emt 00:00:08]} e6
{[%clk 00:19:41]} {[%emt 00:00:19]} 5. Nf3 {[%clk 00:18:49]} {[%emt 00:01:19]}
Be7 {[%clk 00:18:18]} {[%emt 00:01:29]} 6. Bxd5 {[%clk 00:17:46]} {[%emt
00:01:07]} exd5 {[%clk 00:17:35]} {[%emt 00:00:48]} 7. d4 {[%clk 00:17:48]}
{[%emt 00:00:05]} O-O {[%clk 00:14:45]} {[%emt 00:02:53]} 8. h3 {[%clk
00:17:39]} {[%emt 00:00:15]} Be6 {[%clk 00:14:00]} {[%emt 00:00:50]} 9. O-O
{[%clk 00:17:35]} {[%emt 00:00:08]} c5 {[%clk 00:13:54]} {[%emt 00:00:11]} 10.
Bf4 {[%clk 00:16:58]} {[%emt 00:00:41]} Nc6 {[%clk 00:10:40]} {[%emt 00:03:22]}
11. Re1 {[%clk 00:16:21]} {[%emt 00:00:38]} Bd6 {[%clk 00:10:06]} {[%emt
00:00:41]} 12. Bg5 {[%clk 00:15:31]} {[%emt 00:00:54]} Qb6 {[%clk 00:08:48]}
{[%emt 00:01:26]} 13. dxc5 {[%clk 00:13:29]} {[%emt 00:02:07]} Bxc5 {[%clk
00:07:29]} {[%emt 00:01:23]} 14. Re2 {[%clk 00:12:58]} {[%emt 00:00:31]} Qxb2
{[%clk 00:06:48]} {[%emt 00:00:52]} 15. Na4 {[%clk 00:11:14]} {[%emt 00:01:47]}
Qb4 {[%clk 00:06:13]} {[%emt 00:00:32]} 16. c3 {[%clk 00:10:32]} {[%emt
00:00:57]} Qa3 {[%clk 00:05:02]} {[%emt 00:01:08]} 17. Bc1 {[%clk 00:10:21]}
{[%emt 00:00:20]} 1-0

[Event "MCR rapid mládeže 2023 U16"]
[Site "Harachov, Czech Republic"]
[Date "2023.09.09"]
[Round "3.1"]
[White "Svadlenka, Dominik"]
[Black "Hrbek, Jachym"]
[Result "1-0"]
[TimeControl "20min+5s/move"]
[WhiteElo "1588"]
[BlackElo "1769"]

1. d4 {[%clk 00:20:08]} {[%emt 00:00:01]} d5 {[%clk 00:19:53]} {[%emt
00:00:18]} 2. c4 {[%clk 00:20:11]} {[%emt 00:00:02]} e6 {[%clk 00:19:57]}
{[%emt 00:00:01]} 3. Nc3 {[%clk 00:20:15]} c6 {[%clk 00:19:58]} {[%emt
00:00:04]} 4. Nf3 {[%clk 00:20:14]} {[%emt 00:00:06]} Nf6 {[%clk 00:19:55]}
{[%emt 00:00:07]} 5. Bg5 {[%clk 00:20:18]} {[%emt 00:00:02]} Bb4 {[%clk
00:19:40]} {[%emt 00:00:20]} 6. Qc2 {[%clk 00:19:40]} {[%emt 00:00:43]} Nbd7
{[%emt 00:01:22]} 7. cxd5 {[%clk 00:19:25]} {[%emt 00:00:01]} exd5 {[%clk
00:18:33]} {[%emt 00:00:14]} 8. e3 {[%clk 00:19:19]} {[%emt 00:00:11]} h6
{[%clk 00:17:59]} {[%emt 00:00:40]} 9. Bh4 {[%clk 00:18:59]} {[%emt 00:00:25]}
O-O {[%clk 00:15:42]} {[%emt 00:02:21]} 10. Bd3 {[%clk 00:18:59]} {[%emt
00:00:05]} Re8 {[%clk 00:13:21]} {[%emt 00:02:26]} 11. O-O {[%clk 00:19:00]}
{[%emt 00:00:04]} Bxc3 {[%clk 00:12:47]} {[%emt 00:00:40]} 12. bxc3 {[%clk
00:18:43]} {[%emt 00:00:22]} Qa5 {[%clk 00:09:37]} {[%emt 00:03:14]} 13. c4
{[%clk 00:17:40]} {[%emt 00:01:10]} Ne4 {[%clk 00:07:54]} {[%emt 00:01:47]} 14.
cxd5 {[%clk 00:16:33]} {[%emt 00:01:12]} cxd5 {[%clk 00:07:56]} {[%emt
00:00:03]} 15. Rfc1 {[%clk 00:16:16]} {[%emt 00:00:22]} Ndf6 {[%clk 00:02:26]}
{[%emt 00:05:35]} 16. Rab1 {[%clk 00:16:19]} {[%emt 00:00:02]} Be6 {[%clk
00:00:50]} {[%emt 00:01:41]} 17. Rb5 {[%clk 00:11:33]} {[%emt 00:04:50]} Qa3
{[%clk 00:00:33]} {[%emt 00:00:23]} 18. Rb3 {[%clk 00:11:31]} {[%emt 00:00:07]}
Qa5 {[%clk 00:00:25]} {[%emt 00:00:13]} 19. Bxf6 {[%clk 00:10:54]} {[%emt
00:00:41]} Nxf6 {[%clk 00:00:16]} {[%emt 00:00:14]} 20. Qb2 {[%clk 00:10:29]}
{[%emt 00:00:30]} Rac8 {[%emt 00:00:16]} 21. Rxc8 {[%clk 00:09:58]} {[%emt
00:00:35]} Rxc8 {[%clk 00:00:11]} 22. Rxb7 {[%clk 00:09:36]} {[%emt 00:00:28]}
Qc3 {[%clk 00:00:09]} {[%emt 00:00:06]} 23. Qxc3 {[%clk 00:09:03]} {[%emt
00:00:38]} Rxc3 {[%clk 00:00:13]} 24. Rb8+ {[%clk 00:09:07]} {[%emt 00:00:01]}
Bc8 {[%clk 00:00:07]} {[%emt 00:00:11]} 25. Bf1 {[%clk 00:09:01]} {[%emt
00:00:10]} Nd7 {[%clk 00:00:09]} {[%emt 00:00:03]} 26. Ra8 {[%clk 00:08:41]}
{[%emt 00:00:25]} Rc7 {[%clk 00:00:09]} {[%emt 00:00:06]} 27. h4 {[%clk
00:08:16]} {[%emt 00:00:30]} Nb6 {[%clk 00:00:13]} {[%emt 00:00:02]} 28. Rb8
{[%clk 00:08:17]} {[%emt 00:00:03]} Rc1 {[%clk 00:00:08]} {[%emt 00:00:10]} 29.
g3 {[%clk 00:08:01]} {[%emt 00:00:22]} Kh7 {[%clk 00:00:09]} {[%emt 00:00:04]}
30. Kg2 {[%clk 00:07:50]} {[%emt 00:00:15]} Bh3+ {[%clk 00:00:10]} {[%emt
00:00:05]} 31. Kxh3 {[%clk 00:07:54]} {[%emt 00:00:02]} Rxf1 {[%clk 00:00:14]}
{[%emt 00:00:01]} 32. Kg2 {[%clk 00:07:57]} {[%emt 00:00:01]} Ra1 {[%clk
00:00:18]} 33. Ne5 {[%clk 00:07:29]} {[%emt 00:00:33]} f6 {[%clk 00:00:08]}
{[%emt 00:00:15]} 34. Nc6 {[%clk 00:07:24]} {[%emt 00:00:09]} Nc4 {[%clk
00:00:07]} {[%emt 00:00:06]} 35. Nb4 {[%clk 00:06:33]} {[%emt 00:00:56]} Rb1
{[%clk 00:00:09]} {[%emt 00:00:04]} 36. Kf3 {[%clk 00:06:17]} {[%emt 00:00:20]}
a5 {[%clk 00:00:07]} {[%emt 00:00:07]} 37. Nc6 {[%clk 00:06:13]} {[%emt
00:00:10]} Ra1 {[%clk 00:00:10]} {[%emt 00:00:02]} 38. Rb5 {[%clk 00:05:27]}
{[%emt 00:00:50]} Nd2+ {[%clk 00:00:07]} {[%emt 00:00:09]} 39. Ke2 {[%clk
00:05:03]} {[%emt 00:00:29]} Rxa2 {[%clk 00:00:11]} {[%emt 00:00:02]} 40. Rxa5
{[%clk 00:05:06]} Rb2 {[%clk 00:00:07]} {[%emt 00:00:08]} 41. Rxd5 {[%clk
00:04:19]} {[%emt 00:00:53]} Ne4+ {[%clk 00:00:06]} {[%emt 00:00:06]} 42. Kf3
{[%clk 00:04:16]} {[%emt 00:00:07]} Nxf2 {[%clk 00:00:06]} {[%emt 00:00:05]} 43.
Nb4 {[%clk 00:03:48]} {[%emt 00:00:34]} Rxb4 {[%clk 00:00:08]} {[%emt
00:00:03]} 44. Kxf2 {[%clk 00:03:51]} {[%emt 00:00:02]} Rb2+ {[%clk 00:00:11]}
{[%emt 00:00:02]} 45. Kf3 {[%clk 00:03:55]} {[%emt 00:00:01]} Kg6 {[%clk
00:00:13]} {[%emt 00:00:03]} 46. Rd7 {[%clk 00:03:41]} {[%emt 00:00:19]} h5
{[%clk 00:00:08]} {[%emt 00:00:10]} 47. e4 {[%clk 00:03:29]} {[%emt 00:00:16]}
Rb3+ {[%clk 00:00:12]} {[%emt 00:00:02]} 48. Kf4 {[%clk 00:03:33]} {[%emt
00:00:01]} Rd3 {[%clk 00:00:10]} {[%emt 00:00:06]} 49. d5 {[%clk 00:02:52]}
{[%emt 00:00:47]} f5 {[%clk 00:00:09]} {[%emt 00:00:06]} 50. exf5+ {[%clk
00:02:49]} {[%emt 00:00:08]} Kf6 {[%clk 00:00:13]} 51. Rd6+ {[%clk 00:02:47]}
{[%emt 00:00:06]} Ke7 {[%clk 00:00:14]} {[%emt 00:00:05]} 52. Re6+ {[%clk
00:02:51]} {[%emt 00:00:01]} Kf7 {[%clk 00:00:18]} {[%emt 00:00:01]} 53. d6
{[%clk 00:02:45]} {[%emt 00:00:11]} Rd4+ {[%clk 00:00:14]} {[%emt 00:00:09]} 54.
Ke5 {[%clk 00:02:28]} {[%emt 00:00:22]} Rd1 {[%clk 00:00:15]} {[%emt 00:00:04]}
55. Re7+ {[%clk 00:02:24]} {[%emt 00:00:09]} Kf8 {[%clk 00:00:18]} {[%emt
00:00:01]} 56. Ke6 {[%clk 00:02:19]} {[%emt 00:00:05]} Re1+ {[%clk 00:00:09]}
{[%emt 00:00:14]} 57. Kd7 {[%clk 00:02:28]} {[%emt 00:00:01]} Rc1 {[%clk
00:00:13]} {[%emt 00:00:01]} 58. Kd8 {[%clk 00:02:29]} {[%emt 00:00:04]} Rb1
{[%clk 00:00:14]} {[%emt 00:00:04]} 59. Rc7 {[%clk 00:02:28]} {[%emt 00:00:06]}
Rd1 {[%clk 00:00:16]} {[%emt 00:00:03]} 60. d7 {[%clk 00:02:29]} {[%emt
00:00:04]} Kf7 {[%clk 00:00:19]} {[%emt 00:00:01]} 61. Rc5 {[%clk 00:02:28]}
{[%emt 00:00:05]} Rd3 {[%clk 00:00:14]} {[%emt 00:00:10]} 62. Kc7 {[%clk
00:02:28]} {[%emt 00:00:05]} Ke7 {[%clk 00:00:16]} {[%emt 00:00:03]} 63. Re5
{[%clk 00:02:26]} {[%emt 00:00:08]} Kf6 {[%clk 00:00:21]} {[%emt 00:00:01]} 64.
Re8 {[%clk 00:02:25]} {[%emt 00:00:04]} Rc3+ {[%clk 00:00:23]} {[%emt
00:00:03]} 65. Kb6 {[%clk 00:02:20]} {[%emt 00:00:11]} Rb3+ {[%clk 00:00:15]}
{[%emt 00:00:13]} 66. Ka5 {[%clk 00:02:21]} {[%emt 00:00:04]} 1-0

[Event "MCR rapid mládeže 2023 U16"]
[Site "Harachov, Czech Republic"]
[Date "2023.09.09"]
[Round "3.2"]
[White "Babula, Matej"]
[Black "Andrle, Filip"]
[Result "0-1"]
[TimeControl "20min+5s/move"]
[WhiteElo "1865"]
[BlackElo "1649"]

1. e4 {[%clk 00:20:09]} c5 {[%clk 00:20:09]} {[%emt 00:00:02]} 2. Nf3 {[%clk
00:20:12]} {[%emt 00:00:02]} Nc6 {[%clk 00:20:11]} {[%emt 00:00:02]} 3. d4
{[%clk 00:20:14]} {[%emt 00:00:03]} cxd4 {[%clk 00:20:14]} {[%emt 00:00:03]} 4.
Nxd4 {[%clk 00:20:17]} {[%emt 00:00:02]} Nf6 {[%clk 00:20:16]} {[%emt
00:00:02]} 5. Nc3 {[%clk 00:20:20]} {[%emt 00:00:02]} d6 {[%clk 00:20:19]}
{[%emt 00:00:02]} 6. Bg5 {[%clk 00:20:13]} {[%emt 00:00:12]} e6 {[%clk
00:20:21]} {[%emt 00:00:03]} 7. Qd2 {[%clk 00:19:41]} {[%emt 00:00:37]} Be7
{[%clk 00:20:23]} {[%emt 00:00:03]} 8. O-O-O {[%clk 00:18:57]} {[%emt
00:00:49]} a6 {[%clk 00:20:19]} {[%emt 00:00:10]} 9. f4 {[%clk 00:18:53]}
{[%emt 00:00:09]} Qc7 {[%clk 00:19:10]} {[%emt 00:01:14]} 10. Be2 {[%clk
00:17:45]} {[%emt 00:01:13]} Bd7 {[%clk 00:18:03]} {[%emt 00:01:12]} 11. Bf3
{[%clk 00:16:58]} {[%emt 00:00:51]} Rc8 {[%clk 00:16:05]} {[%emt 00:02:03]} 12.
Rhe1 {[%clk 00:15:16]} {[%emt 00:01:47]} O-O {[%clk 00:13:36]} {[%emt
00:02:35]} 13. Nxc6 {[%clk 00:13:31]} {[%emt 00:01:49]} Bxc6 {[%clk 00:13:30]}
{[%emt 00:00:11]} 14. e5 {[%clk 00:11:54]} {[%emt 00:01:42]} dxe5 {[%clk
00:12:12]} {[%emt 00:01:23]} 15. fxe5 {[%clk 00:11:17]} {[%emt 00:00:43]} Rfd8
{[%clk 00:10:50]} {[%emt 00:01:26]} 16. Qf2 {[%clk 00:06:33]} {[%emt 00:04:49]}
Rxd1+ {[%clk 00:07:36]} {[%emt 00:03:19]} 17. Bxd1 {[%clk 00:06:31]} {[%emt
00:00:07]} Nd5 {[%clk 00:07:17]} {[%emt 00:00:24]} 18. Bxe7 {[%clk 00:03:15]}
{[%emt 00:03:21]} Nxe7 {[%clk 00:05:56]} {[%emt 00:01:26]} 19. Bf3 {[%clk
00:02:21]} {[%emt 00:01:00]} Bxf3 {[%clk 00:04:56]} {[%emt 00:01:05]} 20. gxf3
{[%clk 00:02:19]} {[%emt 00:00:08]} Nf5 {[%clk 00:04:31]} {[%emt 00:00:29]} 21.
f4 {[%clk 00:01:33]} {[%emt 00:00:51]} b5 {[%clk 00:02:21]} {[%emt 00:02:15]}
22. Rd1 {[%clk 00:00:51]} {[%emt 00:00:47]} Qc6 {[%clk 00:01:35]} {[%emt
00:00:51]} 23. Qd2 {[%clk 00:00:37]} {[%emt 00:00:20]} g6 {[%clk 00:01:07]}
{[%emt 00:00:32]} 24. Qd3 {[%clk 00:00:24]} {[%emt 00:00:18]} Qc4 {[%clk
00:00:22]} {[%emt 00:00:50]} 25. Ne4 {[%clk 00:00:11]} {[%emt 00:00:18]} Kg7
{[%clk 00:00:12]} {[%emt 00:00:15]} 26. Qxc4 {[%clk 00:00:15]} {[%emt
00:00:01]} Rxc4 {[%clk 00:00:16]} {[%emt 00:00:02]} 27. Nd6 {[%clk 00:00:18]}
{[%emt 00:00:02]} Rxf4 {[%clk 00:00:18]} {[%emt 00:00:03]} 28. Ne8+ {[%clk
00:00:11]} {[%emt 00:00:12]} Kh6 {[%clk 00:00:20]} {[%emt 00:00:02]} 29. Nf6
{[%clk 00:00:13]} {[%emt 00:00:04]} Kg5 {[%clk 00:00:08]} {[%emt 00:00:17]} 30.
Nxh7+ {[%clk 00:00:16]} {[%emt 00:00:02]} Kh4 {[%clk 00:00:12]} {[%emt
00:00:01]} 31. Nf6 {[%clk 00:00:14]} {[%emt 00:00:07]} Kh3 {[%clk 00:00:14]}
{[%emt 00:00:02]} 32. Rd7 {[%clk 00:00:11]} {[%emt 00:00:08]} Kxh2 {[%clk
00:00:10]} {[%emt 00:00:09]} 33. Rxf7 {[%clk 00:00:14]} {[%emt 00:00:02]} g5
{[%clk 00:00:09]} {[%emt 00:00:06]} 34. Rf8 {[%clk 00:00:09]} {[%emt 00:00:10]}
g4 {[%clk 00:00:10]} {[%emt 00:00:04]} 35. Rh8+ {[%clk 00:00:09]} {[%emt
00:00:04]} Kg1 {[%clk 00:00:12]} {[%emt 00:00:03]} 36. Rg8 {[%clk 00:00:11]}
{[%emt 00:00:04]} Ne3 {[%clk 00:00:14]} {[%emt 00:00:03]} 37. Kd2 {[%clk
00:00:07]} {[%emt 00:00:09]} Kf2 {[%clk 00:00:17]} {[%emt 00:00:02]} 38. Nh5
{[%clk 00:00:00]} {[%emt 00:00:07]} 0-1

[Event "MCR rapid mládeže 2023 U16"]
[Site "Harachov, Czech Republic"]
[Date "2023.09.09"]
[Round "3.3"]
[White "Vana, Jan"]
[Black "Juhanak, Daniel"]
[Result "0-1"]
[TimeControl "20min+5s/move"]
[WhiteElo "1681"]
[BlackElo "1878"]

1. e4 {[%clk 00:20:08]} {[%emt 00:00:01]} e6 {[%clk 00:20:06]} {[%emt
00:00:05]} 2. d4 {[%clk 00:20:00]} {[%emt 00:00:13]} d5 {[%clk 00:20:09]} 3. e5
{[%clk 00:20:03]} {[%emt 00:00:02]} c5 {[%clk 00:20:13]} {[%emt 00:00:02]} 4.
c3 {[%clk 00:20:08]} Nc6 {[%clk 00:20:14]} {[%emt 00:00:03]} 5. Nf3 {[%clk
00:20:11]} {[%emt 00:00:02]} Qb6 {[%clk 00:20:11]} {[%emt 00:00:08]} 6. a3
{[%clk 00:20:14]} {[%emt 00:00:03]} Nh6 {[%clk 00:19:55]} {[%emt 00:00:21]} 7.
b4 {[%clk 00:20:06]} {[%emt 00:00:14]} cxd4 {[%clk 00:19:03]} {[%emt 00:00:57]}
8. cxd4 {[%clk 00:20:09]} {[%emt 00:00:02]} Nf5 {[%clk 00:18:40]} {[%emt
00:00:28]} 9. Bb2 {[%clk 00:20:12]} {[%emt 00:00:02]} Be7 {[%clk 00:17:01]}
{[%emt 00:01:43]} 10. g4 {[%clk 00:16:30]} {[%emt 00:03:47]} Nh4 {[%clk
00:16:13]} {[%emt 00:00:53]} 11. Nbd2 {[%clk 00:16:17]} {[%emt 00:00:18]} Ng6
{[%clk 00:15:40]} {[%emt 00:00:38]} 12. Nb3 {[%clk 00:14:32]} {[%emt 00:01:50]}
f6 {[%clk 00:12:35]} {[%emt 00:03:10]} 13. Qd2 {[%clk 00:09:35]} {[%emt
00:05:02]} Rf8 {[%clk 00:10:50]} {[%emt 00:01:50]} 14. Bd3 {[%clk 00:05:37]}
{[%emt 00:04:03]} Bd7 {[%clk 00:03:47]} {[%emt 00:07:09]} 15. O-O {[%clk
00:02:50]} {[%emt 00:02:51]} a6 {[%clk 00:01:43]} {[%emt 00:02:09]} 16. Nc5
{[%clk 00:01:02]} {[%emt 00:01:53]} Qc7 {[%clk 00:01:18]} {[%emt 00:00:30]} 17.
Nxd7 {[%clk 00:00:38]} {[%emt 00:00:29]} Qxd7 {[%clk 00:01:14]} {[%emt
00:00:09]} 18. Rfe1 {[%clk 00:00:24]} {[%emt 00:00:19]} fxe5 {[%clk 00:00:53]}
{[%emt 00:00:25]} 19. Bxg6+ {[%clk 00:00:25]} {[%emt 00:00:04]} hxg6 {[%clk
00:00:57]} {[%emt 00:00:01]} 20. Nxe5 {[%clk 00:00:28]} {[%emt 00:00:02]} Nxe5
{[%clk 00:00:52]} {[%emt 00:00:09]} 21. Rxe5 {[%clk 00:00:16]} {[%emt
00:00:17]} Bd6 {[%clk 00:00:42]} {[%emt 00:00:15]} 22. Rxe6+ {[%clk 00:00:14]}
{[%emt 00:00:07]} Qxe6 {[%clk 00:00:15]} {[%emt 00:00:31]} 23. Re1 {[%clk
00:00:18]} Qxe1+ {[%clk 00:00:15]} {[%emt 00:00:06]} 24. Qxe1+ {[%emt
00:00:02]} Kd7 {[%clk 00:00:17]} {[%emt 00:00:02]} 25. Qe2 {[%clk 00:00:08]}
{[%emt 00:00:20]} Rae8 {[%clk 00:00:17]} {[%emt 00:00:04]} 26. Qd3 {[%clk
00:00:12]} {[%emt 00:00:02]} Re4 {[%clk 00:00:13]} {[%emt 00:00:08]} 27. f3
{[%clk 00:00:08]} {[%emt 00:00:09]} Re6 {[%clk 00:00:12]} {[%emt 00:00:06]} 28.
b5 {[%clk 00:00:07]} {[%emt 00:00:06]} Rfe8 {[%clk 00:00:08]} {[%emt 00:00:09]}
29. bxa6 bxa6 30. Kf2 {[%emt 00:00:20]} Bxh2 {[%emt 00:00:06]} 0-1